fUSD/lending_fUSD_20260509
["ID","MTS","AMOUNT","RATE_DAILY","PERIOD"]
[421898343,1778308701000,-193.46622507,0.00041995,120]
[421898332,1778308701000,-162.44123065,0.00041995,120]
[421898329,1778308701000,-164.34379208,0.00041995,120]
[421898337,1778308701000,-157.44449806,0.00041995,120]
[421898345,1778308701000,-160.19602358,0.00041995,120]
[421898339,1778308701000,-161.26027591,0.00041995,120]
[421898348,1778308701000,-500.0,0.00041995,120]
[421898362,1778308701000,-500.0,0.00041995,120]
[421898346,1778308701000,-342.43,0.00041995,120]
[421898361,1778308701000,-500.0,0.00041995,120]
[421898358,1778308701000,-2000.0,0.00041995,120]
[421898360,1778308701000,-500.0,0.00041995,120]
[421898359,1778308701000,-179.0,0.00041995,120]
[421898357,1778308701000,-2000.0,0.00041995,120]
[421898356,1778308701000,-2000.0,0.00041995,120]
[421898363,1778308701000,-500.0,0.00041995,120]
[421898355,1778308701000,-523.71043013,0.00041995,120]
[421898353,1778308701000,-500.0,0.00041995,120]
[421898352,1778308701000,-500.0,0.00041995,120]
[421898349,1778308701000,-500.0,0.00041995,120]
[421898351,1778308701000,-500.0,0.00041995,120]
[421898350,1778308701000,-500.0,0.00041995,120]
[421898354,1778308701000,-500.0,0.00041995,120]
[421898347,1778308701000,-173.35460061,0.00041995,120]
[421898378,1778308702000,-1000.0,0.00041995,120]
[421898377,1778308702000,-1000.0,0.00041995,120]
[421898375,1778308702000,-1000.0,0.00041995,120]
[421898372,1778308702000,-1000.0,0.00041995,120]
[421898374,1778308702000,-1000.0,0.00041995,120]
[421898373,1778308702000,-1000.0,0.00041995,120]
[421898371,1778308702000,-1000.0,0.00041995,120]
[421898370,1778308702000,-1000.0,0.00041995,120]
[421898368,1778308702000,-1000.0,0.00041995,120]
[421898367,1778308702000,-1000.0,0.00041995,120]
[421898365,1778308702000,-501.09588976,0.00041995,120]
[421898366,1778308702000,-1000.0,0.00041995,120]
[421898364,1778308702000,-500.0,0.00041995,120]
[421898376,1778308702000,-1000.0,0.00041995,120]
[421898369,1778308702000,-1000.0,0.00041995,120]
[421898380,1778308702000,-1000.0,0.00041995,120]
[421898392,1778308702000,-1000.0,0.00041995,120]
[421898381,1778308702000,-1000.0,0.00041995,120]
[421898397,1778308702000,-1000.0,0.00041995,120]
[421898396,1778308702000,-1000.0,0.00041995,120]
[421898395,1778308702000,-153.47124774,0.00041995,120]
[421898394,1778308702000,-1000.0,0.00041995,120]
[421898379,1778308702000,-641.39310021,0.00041995,90]
[421898391,1778308702000,-1000.0,0.00041995,120]
[421898389,1778308702000,-1000.0,0.00041995,120]
[421898393,1778308702000,-225.11035314,0.00041995,120]
[421898388,1778308702000,-286.22053525,0.00041995,60]
[421898386,1778308702000,-197.47634759,0.00041995,91]
[421898387,1778308702000,-1000.0,0.00041995,120]
[421898384,1778308702000,-1000.0,0.00041995,120]
[421898385,1778308702000,-1000.0,0.00041995,120]
[421898382,1778308702000,-1000.0,0.00041995,120]
[421898383,1778308702000,-1000.0,0.00041995,120]
[421898390,1778308702000,-1000.0,0.00041995,120]
[421898414,1778308703000,-151.29142242,0.00041995,120]
[421898412,1778308703000,-163.11391737,0.00041995,30]
[421898413,1778308703000,-191.52136957,0.00041995,120]
[421898408,1778308703000,-324.67810289,0.00041995,60]
[421898409,1778308703000,-285.18489266,0.00041995,120]
[421898410,1778308703000,-229.24958719,0.00041995,30]
[421898407,1778308703000,-301.72852936,0.00041995,120]
[421898411,1778308703000,-315.49678822,0.00041995,120]
[421898406,1778308703000,-161.48740794,0.00041995,120]
[421898404,1778308703000,-367.17888317,0.00041995,50]
[421898403,1778308703000,-1021.82,0.00041995,120]
[421898402,1778308703000,-217.26253377,0.00041995,120]
[421898400,1778308703000,-346.8856973,0.00041995,30]
[421898401,1778308703000,-271.08459371,0.00041995,30]
[421898398,1778308703000,-1000.0,0.00041995,120]
[421898399,1778308703000,-1000.0,0.00041995,120]
[421898405,1778308703000,-198.34115478,0.00041995,120]
[421898415,1778308703000,-184.73239071,0.00041995,120]
[421898416,1778308703000,-159.64042059,0.00041995,30]
[421898418,1778308703000,-175.82244011,0.00041995,120]
[421898417,1778308703000,-1834.87234341,0.00041995,120]
[421898434,1778308703000,-153.90420673,0.00041995,60]
[421898433,1778308703000,-958.39347733,0.00041995,30]
[421898432,1778308703000,-483.69101242,0.00041995,30]
[421898431,1778308703000,-311.35426042,0.00041995,120]
[421898429,1778308703000,-377.27990184,0.00041995,60]
[421898430,1778308703000,-611.15523928,0.00041995,30]
[421898427,1778308703000,-52579.85852458,0.00041995,30]
[421898435,1778308703000,-178.00401845,0.00041995,30]
[421898426,1778308703000,-292.57871728,0.00041995,60]
[421898425,1778308703000,-209.31657877,0.00041995,30]
[421898423,1778308703000,-275.7792544,0.00041995,120]
[421898424,1778308703000,-464.21821766,0.00041995,30]
[421898422,1778308703000,-1452.23121766,0.00041995,30]
[421898421,1778308703000,-557.96795586,0.00041995,30]
[421898419,1778308703000,-1003.62847164,0.00041995,30]
[421898420,1778308703000,-7939.07776433,0.00041995,60]
[421898428,1778308703000,-1586.43237404,0.00041995,30]
[421898450,1778308704000,-500.0,0.00041995,120]
[421898451,1778308704000,-500.0,0.00041995,120]
[421898449,1778308704000,-500.0,0.00041995,120]
[421898448,1778308704000,-500.0,0.00041995,120]
[421898446,1778308704000,-500.0,0.00041995,120]
[421898447,1778308704000,-500.0,0.00041995,120]
[421898445,1778308704000,-500.0,0.00041995,120]
[421898439,1778308704000,-500.0,0.00041995,120]
[421898442,1778308704000,-500.0,0.00041995,120]
[421898443,1778308704000,-500.0,0.00041995,120]
[421898441,1778308704000,-500.0,0.00041995,120]
[421898440,1778308704000,-500.0,0.00041995,120]
[421898437,1778308704000,-153.10811357,0.00041995,90]
[421898438,1778308704000,-16910.18,0.00041995,120]
[421898452,1778308704000,-500.0,0.00041995,120]
[421898444,1778308704000,-500.0,0.00041995,120]
[421898454,1778308704000,-500.0,0.00041995,120]
[421898436,1778308704000,-20200.17692384,0.00041995,30]
[421898455,1778308704000,-500.0,0.00041995,120]
[421898471,1778308704000,-500.0,0.00041995,120]
[421898470,1778308704000,-500.0,0.00041995,120]
[421898469,1778308704000,-500.0,0.00041995,120]
[421898468,1778308704000,-500.0,0.00041995,120]
[421898467,1778308704000,-500.0,0.00041995,120]
[421898466,1778308704000,-500.0,0.00041995,120]
[421898465,1778308704000,-500.0,0.00041995,120]
[421898461,1778308704000,-500.0,0.00041995,120]
[421898453,1778308704000,-500.0,0.00041995,120]
[421898463,1778308704000,-151.46,0.00041995,60]
[421898464,1778308704000,-500.0,0.00041995,120]
[421898458,1778308704000,-500.0,0.00041995,120]
[421898460,1778308704000,-500.0,0.00041995,120]
[421898459,1778308704000,-500.0,0.00041995,120]
[421898457,1778308704000,-500.0,0.00041995,120]
[421898456,1778308704000,-500.0,0.00041995,120]
[421898462,1778308704000,-287.76563813,0.00041995,120]
[421898487,1778308705000,-500.0,0.00041995,120]
[421898488,1778308705000,-500.0,0.00041995,120]
[421898486,1778308705000,-500.0,0.00041995,120]
[421898485,1778308705000,-500.0,0.00041995,120]
[421898483,1778308705000,-500.0,0.00041995,120]
[421898484,1778308705000,-500.0,0.00041995,120]
[421898482,1778308705000,-500.0,0.00041995,120]
[421898480,1778308705000,-500.0,0.00041995,120]
[421898477,1778308705000,-500.0,0.00041995,120]
[421898479,1778308705000,-500.0,0.00041995,120]
[421898478,1778308705000,-500.0,0.00041995,120]
[421898476,1778308705000,-500.0,0.00041995,120]
[421898475,1778308705000,-523.629376,0.00041995,120]
[421898473,1778308705000,-517.11004715,0.00041995,120]
[421898474,1778308705000,-3359.57974479,0.00041995,60]
[421898490,1778308705000,-500.0,0.00041995,120]
[421898481,1778308705000,-500.0,0.00041995,120]
[421898472,1778308705000,-500.0,0.00041995,120]
[421898491,1778308705000,-500.0,0.00041995,120]
[421898492,1778308705000,-500.0,0.00041995,120]
[421898509,1778308705000,-500.0,0.00041995,120]
[421898489,1778308705000,-500.0,0.00041995,120]
[421898507,1778308705000,-500.0,0.00041995,120]
[421898508,1778308705000,-500.0,0.00041995,120]
[421898505,1778308705000,-513.34649746,0.00041995,120]
[421898503,1778308705000,-500.0,0.00041995,120]
[421898504,1778308705000,-500.0,0.00041995,120]
[421898502,1778308705000,-500.0,0.00041995,120]
[421898506,1778308705000,-500.40918522,0.00041995,64]
[421898501,1778308705000,-500.0,0.00041995,120]
[421898500,1778308705000,-500.0,0.00041995,120]
[421898498,1778308705000,-151.46720082,0.00041995,120]
[421898497,1778308705000,-500.0,0.00041995,120]
[421898496,1778308705000,-81554.37,0.00041995,30]
[421898495,1778308705000,-515.76793866,0.00041995,120]
[421898494,1778308705000,-500.0,0.00041995,120]
[421898493,1778308705000,-500.0,0.00041995,120]
[421898499,1778308705000,-500.0,0.00041995,120]
[421898521,1778308706000,-1000.0,0.00041995,120]
[421898523,1778308706000,-3670.26720358,0.00041995,120]
[421898522,1778308706000,-3248.60084513,0.00041995,120]
[421898518,1778308706000,-3000.0,0.00041995,30]
[421898520,1778308706000,-1421.10727277,0.00041995,120]
[421898519,1778308706000,-300.91842942,0.00041995,120]
[421898513,1778308706000,-3237.28204017,0.00041995,30]
[421898514,1778308706000,-401402.43107335,0.00041995,120]
[421898515,1778308706000,-108618.0,0.00041995,60]
[421898516,1778308706000,-3000.0,0.00041995,30]
[421898512,1778308706000,-300000.0,0.00041995,120]
[421898510,1778308706000,-520.57605226,0.00041995,120]
[421898511,1778308706000,-303733.345,0.00041995,120]
[421898517,1778308706000,-3000.0,0.00041995,30]
[421898524,1778308706000,-31931.00393082,0.00041995,120]
[421898525,1778308706000,-160.23969869,0.00041995,120]
[421898527,1778308706000,-151.57,0.00041995,120]
[421898542,1778308706000,-688036.50170917,0.00041995,30]
[421898541,1778308706000,-1000000.0,0.00041995,30]
[421898540,1778308706000,-1000000.0,0.00041995,30]
[421898539,1778308706000,-1000000.0,0.00041995,30]
[421898538,1778308706000,-1000000.0,0.00041995,30]
[421898536,1778308706000,-1000000.0,0.00041995,30]
[421898535,1778308706000,-1000000.0,0.00041995,30]
[421898526,1778308706000,-727.7432,0.00041995,120]
[421898532,1778308706000,-48561.33,0.00041995,120]
[421898534,1778308706000,-1000000.0,0.00041995,30]
[421898533,1778308706000,-1000000.0,0.00041995,30]
[421898531,1778308706000,-1215.57130255,0.00041995,120]
[421898530,1778308706000,-319.44827649,0.00041995,120]
[421898529,1778308706000,-500.0,0.00041995,120]
[421898528,1778308706000,-500.0,0.00041995,120]
[421898537,1778308706000,-1000000.0,0.00041995,30]
[421898545,1778308815000,250.0,0.00014,2]
[421898664,1778309389000,652.64860265,0.00030137,120]
[421898685,1778309431000,-258.72737413,0.00015735,2]
[421898692,1778309431000,-166.66,0.00016056,2]
[421898684,1778309431000,-231.66,0.00015721,2]
[421898676,1778309431000,-300.0,0.00015001,2]
[421898683,1778309431000,-159.77,0.00015716,2]
[421898681,1778309431000,-166.66,0.00015102,2]
[421898689,1778309431000,-960.0,0.00015906,2]
[421898678,1778309431000,-258.72737415,0.00015002,2]
[421898680,1778309431000,-300.0,0.00015018,2]
[421898677,1778309431000,-300.0,0.00015001,2]
[421898682,1778309431000,-166.66,0.0001542,2]
[421898679,1778309431000,-290.7,0.00015004,2]
[421898675,1778309431000,-186.89584623,0.00015,2]
[421898672,1778309431000,-247.06020118,0.00015,2]
[421898673,1778309431000,-30.64800911,0.00015,2]
[421898690,1778309431000,-5967.28569878,0.00015907,2]
[421898674,1778309431000,-219.35199089,0.00015,2]
[421898694,1778309431000,-208.0536425,0.00016078,2]
[421898686,1778309431000,-166.66,0.00015738,2]
[421898705,1778309431000,-929.0,0.00016347,2]
[421898695,1778309431000,-231.66,0.00016114,2]
[421898711,1778309431000,-8372.79,0.00016474,2]
[421898709,1778309431000,-258.72737413,0.00016467,2]
[421898707,1778309431000,-829.9,0.00016438,2]
[421898699,1778309431000,-1352.0,0.00016347,2]
[421898703,1778309431000,-1222.0,0.00016347,2]
[421898706,1778309431000,-166.66,0.00016374,2]
[421898700,1778309431000,-925.0,0.00016347,2]
[421898704,1778309431000,-6047.0,0.00016347,2]
[421898701,1778309431000,-3539.0,0.00016347,2]
[421898698,1778309431000,-624.0,0.00016347,2]
[421898697,1778309431000,-152.0,0.00016233,2]
[421898696,1778309431000,-163.06,0.000162,2]
[421898691,1778309431000,-300.0,0.00016,2]
[421898693,1778309431000,-214.73073128,0.00016078,2]
[421898688,1778309431000,-300.0,0.00015906,2]
[421898687,1778309431000,-150.0,0.00015755,2]
[421898702,1778309431000,-1269.0,0.00016347,2]
[421898713,1778309431000,-156.16109017,0.00016477,7]
[421898740,1778309432000,-2000.0,0.00016715,2]
[421898731,1778309432000,-231.66,0.00016507,2]
[421898744,1778309432000,-231.66,0.000169,2]
[421898747,1778309432000,-254.76,0.000172,7]
[421898753,1778309432000,-639.56,0.00017364,2]
[421898758,1778309432000,-639.56,0.00017364,2]
[421898733,1778309432000,-200.0,0.00016567,2]
[421898751,1778309432000,-202.47940119,0.00017325,2]
[421898736,1778309432000,-166.66,0.00016692,2]
[421898715,1778309432000,-2500.0,0.000165,2]
[421898716,1778309432000,-2500.0,0.000165,2]
[421898722,1778309432000,-300.0,0.000165,2]
[421898725,1778309432000,-250.0,0.000165,2]
[421898727,1778309432000,-300.0,0.000165,2]
[421898720,1778309432000,-2500.0,0.000165,2]
[421898714,1778309432000,-154.41,0.00016495,2]
[421898717,1778309432000,-300.0,0.000165,2]
[421898718,1778309432000,-2171.10592336,0.000165,2]
[421898719,1778309432000,-2500.0,0.000165,2]
[421898749,1778309432000,-231.66,0.00017293,2]
[421898783,1778309432000,-639.56,0.00017367,2]
[421898762,1778309432000,-639.06,0.00017364,2]
[421898782,1778309432000,-639.56,0.00017367,2]
[421898784,1778309432000,-270.79242619,0.00017392,2]
[421898780,1778309432000,-639.56,0.00017367,2]
[421898781,1778309432000,-639.56,0.00017367,2]
[421898779,1778309432000,-639.56,0.00017367,2]
[421898777,1778309432000,-478.87,0.00017364,2]
[421898778,1778309432000,-639.56,0.00017364,2]
[421898760,1778309432000,-639.56,0.00017364,2]
[421898776,1778309432000,-639.56,0.00017364,2]
[421898775,1778309432000,-478.87,0.00017364,2]
[421898771,1778309432000,-536.47180934,0.00017364,2]
[421898772,1778309432000,-320.56676043,0.00017364,2]
[421898773,1778309432000,-158.30323957,0.00017364,2]
[421898770,1778309432000,-103.08819066,0.00017364,2]
[421898769,1778309432000,-478.87,0.00017364,2]
[421898768,1778309432000,-478.87,0.00017364,2]
[421898767,1778309432000,-211.06,0.00017364,2]
[421898764,1778309432000,-639.36,0.00017364,2]
[421898774,1778309432000,-639.56,0.00017364,2]
[421898787,1778309437000,-631.7511,0.00017431,2]
[421898786,1778309437000,-149.20757381,0.00017392,2]
[421898789,1778309437000,-1852.11117813,0.00017468,2]
[421898788,1778309437000,-154.47186515,0.00017439,2]
[421898792,1778309437000,-3003.9608,0.00017509,2]
[421898791,1778309437000,-1000.0,0.000175,2]
[421898793,1778309437000,-1898.33646186,0.00017509,2]
[421898794,1778309437000,-1800.69231806,0.00017509,2]
[421898790,1778309437000,-1701.7314,0.00017472,2]
[421898797,1778309438000,-64.9746242,0.00017521,3]
[421898798,1778309438000,-199.1005158,0.00017521,3]
[421898795,1778309438000,-1300.97122008,0.00017509,2]
[421898796,1778309438000,-130.8653758,0.00017521,3]
[421898802,1778309439000,-53.84235015,0.00017531,2]
[421898803,1778309439000,-2874.02810723,0.00017531,2]
[421898801,1778309439000,-388.4394842,0.00017521,3]
[421898811,1778309440000,-713.71647197,0.00017531,2]
[421898808,1778309440000,-280.88141923,0.00017531,2]
[421898810,1778309440000,-547.33212923,0.00017531,2]
[421898809,1778309440000,-954.30321822,0.00017531,2]
[421898807,1778309440000,-297.82759377,0.00017531,2]
[421898806,1778309440000,-380.30947352,0.00017531,2]
[421898805,1778309440000,-595.85768052,0.00017531,2]
[421898804,1778309440000,-80900.0,0.00017531,2]
[421898832,1778309442000,-290.0,0.00017531,2]
[421898833,1778309442000,-831.73536381,0.00017531,2]
[421898831,1778309442000,-5686.42175206,0.00017531,2]
[421898838,1778309443000,-311.93078956,0.00017531,2]
[421898836,1778309443000,-11440.56483511,0.00017531,2]
[421898837,1778309443000,-3834.73806563,0.00017531,2]
[421898835,1778309443000,-968.38065445,0.00017531,2]
[421898834,1778309443000,-7000.0,0.00017531,2]
[421898945,1778309445000,-9473.03484281,0.00017531,2]
[421898946,1778309445000,-215.0,0.00017536,2]
[421898944,1778309445000,-3136.949,0.00016347,2]
[421898951,1778309445000,-267.97975222,0.00017608,2]
[421898947,1778309445000,-999.35877673,0.00017568,2]
[421898950,1778309445000,-236.93586505,0.00017608,2]
[421898948,1778309445000,-8372.79,0.00017572,2]
[421898949,1778309445000,-2837.12961717,0.00017583,2]
[421898955,1778309445000,-500.0,0.00017608,2]
[421898954,1778309445000,-500.0,0.00017608,2]
[421898953,1778309445000,-500.0,0.00017608,2]
[421898958,1778309445000,-29482.73478522,0.00017609,2]
[421898960,1778309445000,-3267.53507715,0.00017609,2]
[421898959,1778309445000,-629.35984618,0.00017609,2]
[421898957,1778309445000,-150.0,0.00017608,2]
[421898956,1778309445000,-500.0,0.00017608,2]
[421898952,1778309445000,-532.32845047,0.00017608,2]
[421898966,1778309446000,-1000.0,0.00017708,2]
[421898961,1778309446000,-257.12215876,0.00017609,2]
[421898963,1778309446000,-738428.27921751,0.00017609,2]
[421898964,1778309446000,-659.84604635,0.00017683,2]
[421898965,1778309446000,-1000.0,0.000177,3]
[421898967,1778309446000,-158.19593107,0.00017708,2]
[421898962,1778309446000,-3110.30451518,0.00017609,2]
[421898968,1778309446000,-169.0,0.00017709,2]
[421898974,1778309446000,-4343.79552443,0.00017964,2]
[421898973,1778309446000,-5924.03067868,0.00017964,2]
[421898975,1778309446000,-1780.2896,0.00017964,2]
[421898969,1778309446000,-150.99,0.00017728,2]
[421898970,1778309446000,-2193.63,0.00017728,5]
[421898971,1778309446000,-258.0,0.00017744,2]
[421898972,1778309446000,-239.15459171,0.00017915,2]
[421898983,1778309469000,500.0,0.00030029,120]
[421898982,1778309469000,500.0,0.00028999,120]
[421898980,1778309469000,500.0,0.00027399,120]
[421898981,1778309469000,500.0,0.00028099,120]
[421898985,1778309470000,283.04,0.00030129,120]
[421898984,1778309470000,500.0,0.00030129,120]
[421898995,1778310094000,10000.01,0.00015,2]
[421898991,1778310094000,5000.01,0.00015,2]
[421898993,1778310094000,9750.01,0.00015,2]
[421898994,1778310094000,10000.01,0.00015,2]
[421898992,1778310094000,5000.01,0.00015,2]
[421898996,1778310094000,10000.01,0.00015,2]
[421898998,1778310094000,10000.01,0.00015,2]
[421898997,1778310094000,10000.01,0.00015,2]
[421899001,1778310094000,10000.01,0.00015,2]
[421899000,1778310094000,10000.01,0.00015,2]
[421899002,1778310094000,10000.01,0.00015,2]
[421898999,1778310094000,10000.01,0.00015,2]
[421899010,1778310366000,176.44,9.525e-05,2]
[421899009,1778310366000,176.44,7.144e-05,2]
[421899022,1778310631000,-391.68,0.00013699,2]
[421899023,1778310631000,-150.0,0.00013769,2]
[421899025,1778310631000,-300.0,0.00013966,2]
[421899024,1778310631000,-150.0,0.00013904,2]
[421899027,1778310631000,-1200.0,0.00013966,2]
[421899017,1778310631000,-176.44,0.00011906,2]
[421899020,1778310631000,-150.0,0.00013634,2]
[421899019,1778310631000,-193.0,0.00013599,2]
[421899018,1778310631000,-1000.0,0.000135,2]
[421899021,1778310631000,-244.32117098,0.00013669,2]
[421899026,1778310631000,-300.0,0.00013966,2]
[421899039,1778310631000,-150.0,0.00014745,2]
[421899030,1778310631000,-250.0,0.00014,2]
[421899028,1778310631000,-414.75882906,0.00013967,2]
[421899038,1778310631000,-248.07400725,0.00014745,2]
[421899036,1778310631000,-5297.21860681,0.000147,2]
[421899034,1778310631000,-150.0,0.00014375,2]
[421899037,1778310631000,-150.0,0.00014745,2]
[421899032,1778310631000,-2000.0,0.00014221,2]
[421899033,1778310631000,-176.44,0.00014288,2]
[421899029,1778310631000,-20487.16117094,0.00013967,2]
[421899031,1778310631000,-150.0,0.00014039,2]
[421899035,1778310631000,-193.0,0.00014439,2]
[421899068,1778310632000,-500.0,0.00014999,2]
[421899064,1778310632000,-500.0,0.00014999,2]
[421899061,1778310632000,-192.92607149,0.00014999,2]
[421899066,1778310632000,-500.0,0.00014999,2]
[421899067,1778310632000,-500.0,0.00014999,2]
[421899069,1778310632000,-500.0,0.00014999,2]
[421899071,1778310632000,-500.0,0.00014999,2]
[421899072,1778310632000,-500.0,0.00014999,2]
[421899070,1778310632000,-500.0,0.00014999,2]
[421899073,1778310632000,-500.0,0.00014999,2]
[421899074,1778310632000,-500.0,0.00014999,2]
[421899078,1778310632000,-500.0,0.00014999,2]
[421899076,1778310632000,-500.0,0.00014999,2]
[421899077,1778310632000,-500.0,0.00014999,2]
[421899079,1778310632000,-500.0,0.00014999,2]
[421899082,1778310632000,-500.0,0.00014999,2]
[421899075,1778310632000,-500.0,0.00014999,2]
[421899065,1778310632000,-500.0,0.00014999,2]
[421899055,1778310632000,-500.0,0.00014999,2]
[421899062,1778310632000,-640.77045533,0.00014999,2]
[421899043,1778310632000,-150.0,0.00014745,2]
[421899040,1778310632000,-150.0,0.00014745,2]
[421899042,1778310632000,-150.0,0.00014745,2]
[421899041,1778310632000,-158.2995324,0.00014745,2]
[421899045,1778310632000,-150.0,0.00014848,2]
[421899044,1778310632000,-150.0,0.00014745,2]
[421899047,1778310632000,-26510.4099,0.00014899,2]
[421899046,1778310632000,-193.0,0.0001485,2]
[421899050,1778310632000,-4162.22712545,0.000149,2]
[421899049,1778310632000,-52000.05,0.000149,2]
[421899051,1778310632000,-6871.89706235,0.000149,2]
[421899052,1778310632000,-150.0,0.0001495,2]
[421899053,1778310632000,-150.0,0.00014998,2]
[421899057,1778310632000,-163.02578122,0.00014999,2]
[421899056,1778310632000,-500.0,0.00014999,2]
[421899054,1778310632000,-500.0,0.00014999,2]
[421899058,1778310632000,-500.0,0.00014999,2]
[421899063,1778310632000,-500.0,0.00014999,2]
[421899083,1778310632000,-500.0,0.00014999,2]
[421899100,1778310632000,-150.0,0.00015155,2]
[421899081,1778310632000,-500.0,0.00014999,2]
[421899105,1778310632000,-150.0,0.00015291,2]
[421899107,1778310632000,-150.0,0.0001536,2]
[421899108,1778310632000,-150.0,0.00015462,2]
[421899112,1778310632000,-150.0,0.00015564,2]
[421899109,1778310632000,-1007.82,0.00015516,2]
[421899115,1778310632000,-150.0,0.00015769,2]
[421899110,1778310632000,-150.0,0.00015564,2]
[421899104,1778310632000,-500.0,0.00015273,2]
[421899114,1778310632000,-150.0,0.00015667,2]
[421899111,1778310632000,-150.0,0.00015564,2]
[421899117,1778310632000,-150.0,0.00015837,2]
[421899119,1778310632000,-1007.82,0.00015904,2]
[421899121,1778310632000,-150.0,0.00015974,2]
[421899118,1778310632000,-150.0,0.00015872,2]
[421899120,1778310632000,-150.0,0.00015974,2]
[421899080,1778310632000,-500.0,0.00014999,2]
[421899113,1778310632000,-150.0,0.00015631,2]
[421899106,1778310632000,-420.0,0.00015301,2]
[421899116,1778310632000,-500.0,0.00015822,2]
[421899101,1778310632000,-181.14,0.00015167,2]
[421899084,1778310632000,-398.49162628,0.00014999,2]
[421899103,1778310632000,-150.0,0.00015257,2]
[421899086,1778310632000,-500.0,0.00014999,2]
[421899085,1778310632000,-500.0,0.00014999,2]
[421899087,1778310632000,-500.0,0.00014999,2]
[421899089,1778310632000,-150.0,0.00014999,2]
[421899090,1778310632000,-500.0,0.00014999,2]
[421899091,1778310632000,-500.0,0.00014999,2]
[421899088,1778310632000,-500.0,0.00014999,2]
[421899093,1778310632000,-640710.20396445,0.00015,2]
[421899096,1778310632000,-547.00704242,0.00015,2]
[421899095,1778310632000,-182.60906706,0.00015,2]
[421899097,1778310632000,-150.0,0.00015052,2]
[421899094,1778310632000,-182.60906706,0.00015,2]
[421899099,1778310632000,-150.0,0.00015155,2]
[421899102,1778310632000,-1000.0,0.00015186,2]
[421899092,1778310632000,-500.0,0.00014999,2]
[421899098,1778310632000,-150.0,0.00015155,2]
[421899158,1778310633000,-150.0,0.00016384,2]
[421899156,1778310633000,-500.0,0.00016373,2]
[421899160,1778310633000,-150.0,0.00016384,2]
[421899157,1778310633000,-500.18331774,0.00016373,2]
[421899154,1778310633000,-3539.0,0.00016372,2]
[421899155,1778310633000,-1269.0,0.00016372,2]
[421899153,1778310633000,-1352.0,0.00016372,2]
[421899152,1778310633000,-624.0,0.00016372,2]
[421899163,1778310633000,-500.0,0.00016399,2]
[421899151,1778310633000,-150.0,0.00016347,2]
[421899167,1778310633000,-500.0,0.00016399,2]
[421899164,1778310633000,-500.0,0.00016399,2]
[421899178,1778310633000,-639.56,0.00016542,2]
[421899159,1778310633000,-240.48343195,0.00016384,2]
[421899161,1778310633000,-238.65845232,0.00016384,2]
[421899165,1778310633000,-500.0,0.00016399,2]
[421899162,1778310633000,-150.0,0.00016384,2]
[421899170,1778310633000,-500.0,0.00016399,2]
[421899169,1778310633000,-500.0,0.00016399,2]
[421899174,1778310633000,-456.98793949,0.000165,2]
[421899171,1778310633000,-500.0,0.00016399,2]
[421899179,1778310633000,-639.56,0.00016542,2]
[421899173,1778310633000,-6742.95669886,0.00016399,2]
[421899150,1778310633000,-1007.82,0.00016291,2]
[421899166,1778310633000,-500.0,0.00016399,2]
[421899146,1778310633000,-350.50854249,0.00016246,2]
[421899130,1778310633000,-150.0,0.00016179,2]
[421899147,1778310633000,-150.0,0.00016246,2]
[421899122,1778310633000,-150.0,0.00015974,2]